[Event "The Kvibergspelen 2024"]
[Site "Kviberg Park Hotel & Conference, Krutvagen 2, Gothenburg, Sweden"]
[Date "2024.09.06"]
[Round "2.4"]
[White "Thyberg, Andre"]
[Black "Lindberg, Bengt"]
[Result "0-1"]
[TimeControl "15 minutes + 5 seconds per move from move one (Round 1 - 4) / 90 minutes + 30 seconds per move from move one (Round 5 - 8)"]
[BlackTitle "IM"]
[WhiteFideId "1764764"]
[BlackFideId "1700359"]
[WhiteElo "1994"]
[BlackElo "2337"]

1. e4 {[%clk 00:15:06]} {[%emt 00:00:04]} c5 {[%clk 00:15:08]} {[%emt
00:00:03]} 2. d4 {[%clk 00:15:07]} {[%emt 00:00:05]} cxd4 {[%clk 00:15:10]}
{[%emt 00:00:02]} 3. c3 {[%clk 00:15:11]} {[%emt 00:00:01]} Nf6 {[%clk
00:15:12]} {[%emt 00:00:02]} 4. e5 {[%clk 00:15:14]} {[%emt 00:00:03]} Nd5
{[%clk 00:15:15]} {[%emt 00:00:01]} 5. Nf3 {[%clk 00:15:18]} {[%emt 00:00:01]}
e6 {[%clk 00:15:18]} {[%emt 00:00:02]} 6. cxd4 {[%clk 00:15:21]} {[%emt
00:00:03]} d6 {[%clk 00:15:21]} {[%emt 00:00:03]} 7. Bd3 {[%clk 00:15:01]}
{[%emt 00:00:23]} Nc6 {[%clk 00:15:06]} {[%emt 00:00:20]} 8. O-O {[%clk
00:14:51]} {[%emt 00:00:15]} Ndb4 {[%clk 00:14:04]} {[%emt 00:01:07]} 9. Bb5
{[%clk 00:13:39]} {[%emt 00:01:18]} a6 {[%clk 00:13:52]} {[%emt 00:00:16]} 10.
Ba4 {[%clk 00:13:03]} {[%emt 00:00:41]} b5 {[%clk 00:13:35]} {[%emt 00:00:22]}
11. Bb3 {[%clk 00:13:07]} {[%emt 00:00:02]} dxe5 {[%clk 00:12:59]} {[%emt
00:00:40]} 12. dxe5 {[%clk 00:12:02]} {[%emt 00:01:10]} Qxd1 {[%clk 00:12:49]}
{[%emt 00:00:15]} 13. Rxd1 {[%clk 00:12:06]} {[%emt 00:00:01]} Na5 {[%clk
00:12:24]} {[%emt 00:00:30]} 14. Nc3 {[%clk 00:09:48]} {[%emt 00:02:23]} Nxb3
{[%clk 00:12:06]} {[%emt 00:00:23]} 15. axb3 {[%clk 00:09:46]} {[%emt
00:00:07]} Bb7 {[%clk 00:12:02]} {[%emt 00:00:08]} 16. Bg5 {[%clk 00:08:57]}
{[%emt 00:00:55]} Be7 {[%clk 00:10:10]} {[%emt 00:01:57]} 17. Bxe7 {[%clk
00:08:59]} {[%emt 00:00:04]} Kxe7 {[%clk 00:10:13]} {[%emt 00:00:01]} 18. Ng5
{[%clk 00:08:23]} {[%emt 00:00:41]} Rhd8 {[%clk 00:08:42]} {[%emt 00:01:36]} 19.
Nce4 {[%clk 00:07:48]} {[%emt 00:00:41]} Bxe4 {[%clk 00:05:30]} {[%emt
00:03:16]} 20. Nxe4 {[%clk 00:07:52]} {[%emt 00:00:01]} Nd3 {[%clk 00:05:33]}
{[%emt 00:00:03]} 21. Kf1 {[%clk 00:05:57]} {[%emt 00:02:00]} Nxe5 {[%clk
00:05:32]} {[%emt 00:00:06]} 22. Rxd8 {[%clk 00:06:00]} {[%emt 00:00:02]} Kxd8
{[%clk 00:04:56]} {[%emt 00:00:39]} 23. Nc5 {[%clk 00:05:53]} {[%emt 00:00:13]}
Kc7 {[%clk 00:04:27]} {[%emt 00:00:34]} 24. Rxa6 {[%clk 00:05:15]} {[%emt
00:00:44]} Rxa6 {[%clk 00:04:24]} {[%emt 00:00:08]} 25. Nxa6+ {[%clk 00:05:19]}
{[%emt 00:00:01]} Kb6 {[%clk 00:04:05]} {[%emt 00:00:23]} 26. Nb4 {[%clk
00:05:18]} {[%emt 00:00:06]} Ka5 {[%clk 00:03:22]} {[%emt 00:00:48]} 27. Nc2
{[%clk 00:05:17]} {[%emt 00:00:06]} Nd3 {[%clk 00:03:05]} {[%emt 00:00:22]} 28.
Ke2 {[%clk 00:05:06]} {[%emt 00:00:17]} Nf4+ {[%clk 00:02:41]} {[%emt
00:00:28]} 29. Kf3 {[%clk 00:04:55]} {[%emt 00:00:16]} Nd5 {[%clk 00:02:44]}
{[%emt 00:00:02]} 30. Ke4 {[%clk 00:04:45]} {[%emt 00:00:16]} Kb6 {[%clk
00:02:37]} {[%emt 00:00:11]} 31. b4 {[%clk 00:04:01]} {[%emt 00:00:50]} Ne7
{[%clk 00:02:21]} {[%emt 00:00:20]} 32. Ke5 {[%clk 00:03:40]} {[%emt 00:00:26]}
Kc7 {[%clk 00:02:24]} {[%emt 00:00:02]} 33. Kd4 {[%clk 00:03:13]} {[%emt
00:00:32]} Kd6 {[%clk 00:02:28]} {[%emt 00:00:02]} 34. Na3 {[%clk 00:02:56]}
{[%emt 00:00:22]} Nc6+ {[%clk 00:02:15]} {[%emt 00:00:17]} 35. Kc3 {[%clk
00:02:53]} {[%emt 00:00:08]} Na7 {[%clk 00:02:19]} {[%emt 00:00:02]} 36. Kd4
{[%clk 00:02:13]} {[%emt 00:00:45]} f6 {[%clk 00:02:17]} {[%emt 00:00:06]} 37.
f4 {[%clk 00:01:47]} {[%emt 00:00:31]} Kc6 {[%clk 00:02:10]} {[%emt 00:00:11]}
38. Nb1 {[%clk 00:01:21]} {[%emt 00:00:33]} Nc8 {[%clk 00:02:02]} {[%emt
00:00:12]} 39. Nd2 {[%clk 00:01:05]} {[%emt 00:00:22]} Ne7 {[%clk 00:01:56]}
{[%emt 00:00:10]} 40. Ne4 {[%clk 00:00:45]} {[%emt 00:00:25]} Nd5 {[%clk
00:01:13]} {[%emt 00:00:48]} 41. Nc5 {[%clk 00:00:49]} {[%emt 00:00:03]} Nxf4
{[%clk 00:01:09]} {[%emt 00:00:08]} 42. g3 {[%clk 00:00:47]} {[%emt 00:00:08]}
e5+ {[%clk 00:01:13]} {[%emt 00:00:01]} 43. Ke4 {[%clk 00:00:38]} {[%emt
00:00:09]} Nd5 {[%clk 00:01:16]} {[%emt 00:00:07]} 44. Ne6 {[%clk 00:00:37]}
{[%emt 00:00:05]} g6 {[%clk 00:00:49]} {[%emt 00:00:32]} 45. Nf8 {[%clk
00:00:40]} {[%emt 00:00:03]} Kd6 {[%clk 00:00:45]} {[%emt 00:00:09]} 46. Nxh7
{[%clk 00:00:37]} {[%emt 00:00:08]} f5+ {[%clk 00:00:49]} {[%emt 00:00:01]} 47.
Kf3 {[%clk 00:00:32]} {[%emt 00:00:10]} e4+ {[%clk 00:00:50]} {[%emt 00:00:05]}
48. Ke2 {[%clk 00:00:33]} {[%emt 00:00:02]} Ke5 {[%clk 00:00:49]} {[%emt
00:00:06]} 49. Nf8 {[%clk 00:00:20]} {[%emt 00:00:18]} g5 {[%clk 00:00:47]}
{[%emt 00:00:07]} 50. Nh7 {[%clk 00:00:11]} {[%emt 00:00:15]} g4 {[%clk
00:00:49]} {[%emt 00:00:03]} 51. Ng5 {[%clk 00:00:15]} {[%emt 00:00:01]} Nxb4
{[%clk 00:00:42]} {[%emt 00:00:11]} 52. Nf7+ {[%clk 00:00:18]} {[%emt
00:00:02]} Kd5 {[%clk 00:00:39]} {[%emt 00:00:07]} 53. Nh6 {[%clk 00:00:10]}
{[%emt 00:00:13]} Ke6 {[%clk 00:00:43]} {[%emt 00:00:03]} 54. Ke3 {[%clk
00:00:13]} {[%emt 00:00:02]} Nd3 {[%clk 00:00:42]} {[%emt 00:00:06]} 55. b3
{[%clk 00:00:09]} {[%emt 00:00:09]} Nc5 {[%clk 00:00:43]} {[%emt 00:00:03]} 56.
b4 {[%clk 00:00:14]} {[%emt 00:00:01]} Nd3 {[%clk 00:00:47]} {[%emt 00:00:01]}
57. Kd4 {[%clk 00:00:08]} {[%emt 00:00:11]} Nxb4 {[%clk 00:00:50]} 58. Kc5
{[%clk 00:00:09]} {[%emt 00:00:06]} e3 {[%clk 00:00:46]} {[%emt 00:00:08]} 0-1

[Event "The Kvibergspelen 2024"]
[Site "Kviberg Park Hotel & Conference, Krutvagen 2, Gothenburg, Sweden"]
[Date "2024.09.06"]
[Round "2.5"]
[White "Ostlund, Joar"]
[Black "Frisk, Hans"]
[Result "1-0"]
[TimeControl "15 minutes + 5 seconds per move from move one (Round 1 - 4) / 90 minutes + 30 seconds per move from move one (Round 5 - 8)"]
[WhiteTitle "FM"]
[WhiteFideId "1735020"]
[BlackFideId "1708570"]
[WhiteElo "2335"]
[BlackElo "1994"]

1. d4 {[%clk 00:15:08]} {[%emt 00:00:02]} Nf6 {[%clk 00:15:09]} {[%emt
00:00:01]} 2. c4 {[%clk 00:15:11]} {[%emt 00:00:02]} e6 {[%clk 00:15:13]}
{[%emt 00:00:01]} 3. Nf3 {[%clk 00:15:14]} {[%emt 00:00:02]} b6 {[%clk
00:15:06]} {[%emt 00:00:12]} 4. a3 {[%clk 00:15:16]} {[%emt 00:00:04]} Bb7
{[%clk 00:15:08]} {[%emt 00:00:02]} 5. Bf4 {[%clk 00:15:19]} {[%emt 00:00:02]}
Be7 {[%clk 00:14:29]} {[%emt 00:00:44]} 6. Nc3 {[%clk 00:15:13]} {[%emt
00:00:10]} d6 {[%clk 00:14:16]} {[%emt 00:00:18]} 7. d5 {[%clk 00:14:47]}
{[%emt 00:00:32]} e5 {[%clk 00:14:03]} {[%emt 00:00:18]} 8. Bd2 {[%clk
00:14:16]} {[%emt 00:00:36]} a5 {[%clk 00:13:29]} {[%emt 00:00:39]} 9. e4
{[%clk 00:14:10]} {[%emt 00:00:12]} Nbd7 {[%clk 00:13:18]} {[%emt 00:00:15]} 10.
Bd3 {[%clk 00:13:49]} {[%emt 00:00:26]} O-O {[%clk 00:12:06]} {[%emt 00:01:17]}
11. b4 {[%clk 00:12:57]} {[%emt 00:00:57]} axb4 {[%clk 00:11:25]} {[%emt
00:00:46]} 12. axb4 {[%clk 00:12:59]} {[%emt 00:00:03]} c6 {[%clk 00:10:20]}
{[%emt 00:01:09]} 13. dxc6 {[%clk 00:12:02]} {[%emt 00:01:04]} Bxc6 {[%clk
00:10:17]} {[%emt 00:00:08]} 14. O-O {[%clk 00:11:01]} {[%emt 00:01:05]} Rxa1
{[%clk 00:09:10]} {[%emt 00:01:12]} 15. Qxa1 {[%clk 00:11:04]} {[%emt
00:00:02]} Qa8 {[%clk 00:09:05]} {[%emt 00:00:10]} 16. Qb1 {[%clk 00:10:39]}
{[%emt 00:00:29]} Rc8 {[%clk 00:08:09]} {[%emt 00:01:01]} 17. h3 {[%clk
00:09:41]} {[%emt 00:01:04]} Nf8 {[%clk 00:07:06]} {[%emt 00:01:08]} 18. Be3
{[%clk 00:09:28]} {[%emt 00:00:18]} Qb7 {[%clk 00:06:15]} {[%emt 00:00:56]} 19.
g3 {[%clk 00:07:39]} {[%emt 00:01:54]} Ne6 {[%clk 00:05:20]} {[%emt 00:01:00]}
20. Nd5 {[%clk 00:07:28]} {[%emt 00:00:15]} Bd8 {[%clk 00:04:59]} {[%emt
00:00:27]} 21. Rc1 {[%clk 00:06:51]} {[%emt 00:00:42]} Be8 {[%clk 00:03:47]}
{[%emt 00:01:17]} 22. Nc3 {[%clk 00:04:58]} {[%emt 00:01:58]} Bc6 {[%clk
00:02:48]} {[%emt 00:01:04]} 23. Nd2 {[%clk 00:04:08]} {[%emt 00:00:54]} Be7
{[%clk 00:01:35]} {[%emt 00:01:19]} 24. Qb2 {[%clk 00:03:22]} {[%emt 00:00:51]}
Ra8 {[%clk 00:01:32]} {[%emt 00:00:08]} 25. f3 {[%clk 00:02:28]} {[%emt
00:00:59]} Nh5 {[%clk 00:00:49]} {[%emt 00:00:48]} 26. Kg2 {[%clk 00:02:02]}
{[%emt 00:00:31]} Bg5 {[%clk 00:00:44]} {[%emt 00:00:10]} 27. Bxg5 {[%clk
00:01:06]} {[%emt 00:01:02]} Nxg5 {[%clk 00:00:46]} {[%emt 00:00:02]} 28. h4
{[%clk 00:00:56]} {[%emt 00:00:15]} Ne6 {[%clk 00:00:38]} {[%emt 00:00:13]} 29.
Ne2 {[%clk 00:00:55]} {[%emt 00:00:07]} Qe7 {[%clk 00:00:24]} {[%emt 00:00:18]}
30. Ra1 {[%clk 00:00:47]} {[%emt 00:00:13]} Rxa1 {[%clk 00:00:22]} {[%emt
00:00:07]} 31. Qxa1 {[%clk 00:00:51]} {[%emt 00:00:01]} Qb7 {[%clk 00:00:26]}
{[%emt 00:00:01]} 32. Qc3 {[%clk 00:00:10]} {[%emt 00:00:47]} g6 {[%clk
00:00:24]} {[%emt 00:00:07]} 33. Bc2 {[%clk 00:00:10]} {[%emt 00:00:05]} Qe7
{[%clk 00:00:21]} {[%emt 00:00:08]} 34. Nf1 {[%clk 00:00:11]} {[%emt 00:00:05]}
Qf6 {[%clk 00:00:20]} {[%emt 00:00:04]} 35. Ne3 {[%clk 00:00:12]} {[%emt
00:00:05]} Kg7 {[%clk 00:00:14]} {[%emt 00:00:11]} 36. Ng4 {[%clk 00:00:12]}
{[%emt 00:00:06]} Qe7 {[%clk 00:00:16]} {[%emt 00:00:02]} 37. Qe3 {[%clk
00:00:15]} {[%emt 00:00:02]} Kg8 {[%clk 00:00:16]} {[%emt 00:00:06]} 38. Qxb6
{[%clk 00:00:17]} {[%emt 00:00:02]} Bb7 {[%clk 00:00:12]} {[%emt 00:00:09]} 39.
Ba4 {[%clk 00:00:16]} {[%emt 00:00:06]} f5 {[%clk 00:00:12]} {[%emt 00:00:06]}
40. exf5 {[%clk 00:00:16]} {[%emt 00:00:05]} gxf5 {[%clk 00:00:15]} {[%emt
00:00:01]} 41. Nh6+ {[%clk 00:00:19]} {[%emt 00:00:01]} Kh8 {[%clk 00:00:06]}
{[%emt 00:00:15]} 42. Nxf5 {[%clk 00:00:22]} {[%emt 00:00:03]} Qf6 {[%clk
00:00:00]} 1-0

[Event "The Kvibergspelen 2024"]
[Site "Kviberg Park Hotel & Conference, Krutvagen 2, Gothenburg, Sweden"]
[Date "2024.09.06"]
[Round "2.6"]
[White "Grahn, Vidar"]
[Black "Bengtsson, Siv"]
[Result "1-0"]
[TimeControl "15 minutes + 5 seconds per move from move one (Round 1 - 4) / 90 minutes + 30 seconds per move from move one (Round 5 - 8)"]
[WhiteTitle "FM"]
[WhiteFideId "1744780"]
[BlackFideId "1701673"]
[WhiteElo "2219"]
[BlackElo "1972"]

1. d4 {[%clk 00:15:07]} {[%emt 00:00:02]} Nf6 {[%clk 00:15:09]} {[%emt
00:00:02]} 2. c4 {[%clk 00:15:10]} {[%emt 00:00:02]} e6 {[%emt 00:00:04]} 3.
Nf3 {[%clk 00:15:09]} {[%emt 00:00:05]} Bb4+ {[%clk 00:15:14]} {[%emt
00:00:02]} 4. Nbd2 {[%clk 00:15:13]} {[%emt 00:00:01]} O-O {[%clk 00:14:33]}
{[%emt 00:00:46]} 5. g3 {[%clk 00:15:16]} {[%emt 00:00:02]} d6 {[%clk
00:14:34]} {[%emt 00:00:04]} 6. Bg2 {[%clk 00:15:17]} {[%emt 00:00:04]} Nbd7
{[%clk 00:14:37]} {[%emt 00:00:02]} 7. O-O {[%clk 00:15:18]} {[%emt 00:00:03]}
e5 {[%clk 00:14:30]} {[%emt 00:00:13]} 8. dxe5 {[%clk 00:15:15]} {[%emt
00:00:09]} Nxe5 {[%clk 00:14:27]} {[%emt 00:00:07]} 9. Nxe5 {[%clk 00:15:09]}
{[%emt 00:00:11]} dxe5 {[%clk 00:14:30]} {[%emt 00:00:01]} 10. a3 {[%clk
00:15:12]} {[%emt 00:00:03]} Bc5 {[%clk 00:13:55]} {[%emt 00:00:40]} 11. b4
{[%clk 00:14:14]} {[%emt 00:01:03]} Bd4 {[%clk 00:13:46]} {[%emt 00:00:14]} 12.
Rb1 {[%clk 00:13:47]} {[%emt 00:00:33]} Bf5 {[%clk 00:12:36]} {[%emt 00:01:14]}
13. e4 {[%clk 00:13:21]} {[%emt 00:00:30]} Be6 {[%clk 00:12:37]} {[%emt
00:00:04]} 14. Qc2 {[%clk 00:13:00]} {[%emt 00:00:26]} b6 {[%clk 00:11:32]}
{[%emt 00:01:10]} 15. Nf3 {[%clk 00:11:10]} {[%emt 00:01:56]} c5 {[%clk
00:11:16]} {[%emt 00:00:21]} 16. Rd1 {[%clk 00:10:41]} {[%emt 00:00:33]} Qc7
{[%clk 00:11:09]} {[%emt 00:00:14]} 17. bxc5 {[%clk 00:09:40]} {[%emt
00:01:05]} bxc5 {[%clk 00:10:45]} {[%emt 00:00:29]} 18. Bb2 {[%clk 00:08:36]}
{[%emt 00:01:10]} Nd7 {[%clk 00:08:59]} {[%emt 00:01:50]} 19. Ne1 {[%clk
00:08:19]} {[%emt 00:00:21]} Nb6 {[%clk 00:08:26]} {[%emt 00:00:38]} 20. Bf1
{[%clk 00:07:24]} {[%emt 00:01:02]} f5 {[%clk 00:06:55]} {[%emt 00:01:34]} 21.
Bxd4 {[%clk 00:07:21]} {[%emt 00:00:08]} cxd4 {[%clk 00:06:33]} {[%emt
00:00:28]} 22. c5 {[%clk 00:06:59]} {[%emt 00:00:27]} Nd7 {[%clk 00:06:31]}
{[%emt 00:00:08]} 23. Bc4 {[%clk 00:06:26]} {[%emt 00:00:36]} Bxc4 {[%clk
00:06:24]} {[%emt 00:00:13]} 24. Qxc4+ {[%clk 00:06:29]} {[%emt 00:00:02]} Kh8
{[%clk 00:06:29]} 25. exf5 {[%emt 00:02:48]} Qxc5 {[%clk 00:04:34]} {[%emt
00:00:01]} 26. Qe6 {[%clk 00:05:44]} {[%emt 00:00:05]} Qc8 {[%clk 00:04:02]}
{[%emt 00:00:38]} 27. Rdc1 {[%clk 00:05:05]} {[%emt 00:00:43]} Qe8 {[%clk
00:03:57]} {[%emt 00:00:11]} 28. Rb7 {[%clk 00:04:05]} {[%emt 00:01:05]} Qxe6
{[%clk 00:01:38]} {[%emt 00:02:24]} 29. fxe6 {[%clk 00:04:09]} {[%emt
00:00:01]} Nf6 {[%clk 00:01:41]} {[%emt 00:00:01]} 30. Rcc7 {[%clk 00:03:54]}
{[%emt 00:00:20]} e4 {[%clk 00:01:44]} {[%emt 00:00:03]} 31. Nc2 {[%clk
00:01:38]} {[%emt 00:02:21]} d3 {[%clk 00:01:42]} {[%emt 00:00:07]} 32. Ne3
{[%clk 00:01:42]} {[%emt 00:00:01]} Rfd8 {[%clk 00:01:23]} {[%emt 00:00:24]} 33.
Rxg7 {[%clk 00:01:02]} {[%emt 00:00:44]} d2 {[%clk 00:00:48]} {[%emt 00:00:40]}
34. Rgf7 {[%clk 00:00:59]} {[%emt 00:00:07]} Rac8 {[%clk 00:00:15]} {[%emt
00:00:39]} 35. Rxf6 {[%clk 00:00:57]} {[%emt 00:00:08]} Rc1+ {[%clk 00:00:17]}
{[%emt 00:00:03]} 36. Kg2 {[%clk 00:01:00]} {[%emt 00:00:01]} Re1 {[%clk
00:00:20]} {[%emt 00:00:04]} 37. e7 {[%clk 00:00:58]} {[%emt 00:00:06]} Rg8
{[%clk 00:00:15]} {[%emt 00:00:10]} 38. Rf8 {[%clk 00:00:55]} {[%emt 00:00:07]}
Rxe3 {[%clk 00:00:17]} {[%emt 00:00:04]} 39. Rxg8+ {[%clk 00:00:58]} {[%emt
00:00:02]} Kxg8 {[%clk 00:00:20]} {[%emt 00:00:02]} 40. e8=Q# {[%clk 00:01:02]}
{[%emt 00:00:01]} 1-0

[Event "The Kvibergspelen 2024"]
[Site "Kviberg Park Hotel & Conference, Krutvagen 2, Gothenburg, Sweden"]
[Date "2024.09.06"]
[Round "2.7"]
[White "Dingertz, Gustav"]
[Black "Nord, Alexander"]
[Result "0-1"]
[TimeControl "15 minutes + 5 seconds per move from move one (Round 1 - 4) / 90 minutes + 30 seconds per move from move one (Round 5 - 8)"]
[BlackTitle "CM"]
[WhiteFideId "1767917"]
[BlackFideId "1738135"]
[WhiteElo "1938"]
[BlackElo "2209"]

1. e4 {[%clk 00:15:07]} {[%emt 00:00:02]} e6 {[%clk 00:15:09]} {[%emt
00:00:01]} 2. d4 {[%clk 00:14:22]} {[%emt 00:00:50]} d5 {[%clk 00:15:13]}
{[%emt 00:00:02]} 3. e5 {[%clk 00:14:21]} {[%emt 00:00:06]} c5 {[%clk
00:15:16]} {[%emt 00:00:02]} 4. c3 {[%clk 00:14:25]} {[%emt 00:00:01]} Nc6
{[%clk 00:15:20]} {[%emt 00:00:01]} 5. Nf3 {[%clk 00:14:28]} {[%emt 00:00:02]}
Qb6 {[%clk 00:15:23]} {[%emt 00:00:01]} 6. a3 {[%clk 00:14:08]} {[%emt
00:00:25]} c4 {[%clk 00:15:27]} {[%emt 00:00:02]} 7. Be2 {[%clk 00:14:06]}
{[%emt 00:00:06]} Na5 {[%clk 00:15:27]} {[%emt 00:00:05]} 8. Nbd2 {[%clk
00:14:07]} {[%emt 00:00:05]} Bd7 {[%clk 00:15:29]} {[%emt 00:00:03]} 9. O-O
{[%clk 00:14:03]} {[%emt 00:00:08]} Ne7 {[%clk 00:15:25]} {[%emt 00:00:10]} 10.
h3 {[%clk 00:12:29]} {[%emt 00:01:39]} Nc8 {[%clk 00:15:22]} {[%emt 00:00:07]}
11. Nh2 {[%clk 00:11:39]} {[%emt 00:00:54]} Qc7 {[%clk 00:15:17]} {[%emt
00:00:12]} 12. Qe1 {[%clk 00:10:17]} {[%emt 00:01:26]} Nb6 {[%clk 00:15:06]}
{[%emt 00:00:16]} 13. f4 {[%clk 00:10:01]} {[%emt 00:00:21]} O-O-O {[%clk
00:14:21]} {[%emt 00:00:51]} 14. Bd1 {[%clk 00:08:53]} {[%emt 00:01:13]} Be7
{[%clk 00:13:52]} {[%emt 00:00:34]} 15. Kh1 {[%clk 00:07:52]} {[%emt 00:01:05]}
Rdf8 {[%clk 00:11:42]} {[%emt 00:02:16]} 16. Bc2 {[%clk 00:07:27]} {[%emt
00:00:30]} f5 {[%clk 00:09:54]} {[%emt 00:01:53]} 17. exf6 {[%clk 00:07:07]}
{[%emt 00:00:25]} gxf6 {[%clk 00:09:57]} {[%emt 00:00:02]} 18. Nhf3 {[%clk
00:05:27]} {[%emt 00:01:44]} f5 {[%clk 00:07:24]} {[%emt 00:02:39]} 19. Ne5
{[%clk 00:05:21]} {[%emt 00:00:10]} Kb8 {[%clk 00:07:22]} {[%emt 00:00:08]} 20.
Rb1 {[%clk 00:04:24]} {[%emt 00:01:03]} Nc8 {[%clk 00:05:58]} {[%emt 00:01:28]}
21. b4 {[%clk 00:02:32]} {[%emt 00:01:57]} Nc6 {[%clk 00:04:50]} {[%emt
00:01:13]} 22. b5 {[%clk 00:02:33]} {[%emt 00:00:04]} Nd8 {[%clk 00:04:16]}
{[%emt 00:00:38]} 23. a4 {[%clk 00:01:50]} {[%emt 00:00:50]} Nd6 {[%clk
00:04:04]} {[%emt 00:00:15]} 24. Ba3 {[%clk 00:01:33]} {[%emt 00:00:22]} Bc8
{[%clk 00:03:58]} {[%emt 00:00:11]} 25. Bxd6 {[%clk 00:01:11]} {[%emt
00:00:28]} Bxd6 {[%clk 00:03:54]} {[%emt 00:00:09]} 26. Qc1 {[%clk 00:00:43]}
{[%emt 00:00:34]} Rhg8 {[%clk 00:03:35]} {[%emt 00:00:23]} 27. Qb2 {[%clk
00:00:44]} {[%emt 00:00:04]} Rg3 {[%clk 00:03:16]} {[%emt 00:00:23]} 28. Bd1
{[%clk 00:00:40]} {[%emt 00:00:09]} Nf7 {[%clk 00:02:53]} {[%emt 00:00:29]} 29.
Bf3 {[%clk 00:00:43]} {[%emt 00:00:02]} Nh6 {[%clk 00:02:32]} {[%emt 00:00:24]}
30. Rf2 {[%clk 00:00:19]} {[%emt 00:00:31]} Ng8 {[%clk 00:02:33]} {[%emt
00:00:04]} 31. a5 {[%clk 00:00:10]} {[%emt 00:00:14]} Qxa5 {[%clk 00:01:24]}
{[%emt 00:01:14]} 32. Ra1 {[%clk 00:00:10]} {[%emt 00:00:05]} Qb6 {[%clk
00:01:19]} {[%emt 00:00:09]} 33. Nf1 {[%clk 00:00:13]} {[%emt 00:00:03]} Rg7
{[%clk 00:01:21]} {[%emt 00:00:02]} 34. Qb1 {[%clk 00:00:12]} {[%emt 00:00:06]}
Ka8 {[%clk 00:00:28]} {[%emt 00:00:59]} 35. Rfa2 {[%clk 00:00:15]} {[%emt
00:00:02]} Bb8 {[%clk 00:00:31]} {[%emt 00:00:01]} 36. Qb2 {[%clk 00:00:07]}
{[%emt 00:00:13]} Nf6 {[%clk 00:00:32]} {[%emt 00:00:04]} 37. Ra3 {[%clk
00:00:10]} {[%emt 00:00:02]} Ne4 {[%clk 00:00:33]} {[%emt 00:00:04]} 38. R1a2
{[%clk 00:00:09]} {[%emt 00:00:07]} Rfg8 {[%clk 00:00:33]} {[%emt 00:00:05]} 39.
Qa1 {[%clk 00:00:13]} h6 {[%clk 00:00:11]} {[%emt 00:00:26]} 40. Ne3 {[%clk
00:00:15]} {[%emt 00:00:04]} Qxb5 {[%clk 00:00:11]} {[%emt 00:00:05]} 41. Rxa7+
{[%clk 00:00:16]} {[%emt 00:00:04]} Bxa7 {[%clk 00:00:15]} 42. Rxa7+ {[%clk
00:00:19]} {[%emt 00:00:03]} Kb8 {[%clk 00:00:19]} 43. Ra5 {[%clk 00:00:16]}
{[%emt 00:00:08]} Qb6 {[%clk 00:00:21]} {[%emt 00:00:03]} 44. Qa3 {[%clk
00:00:06]} {[%emt 00:00:15]} Rg3 {[%clk 00:00:12]} {[%emt 00:00:14]} 45. Nc2
{[%clk 00:00:07]} {[%emt 00:00:04]} Nf2+ {[%clk 00:00:16]} {[%emt 00:00:01]} 46.
Kg1 {[%clk 00:00:10]} {[%emt 00:00:02]} Nxh3+ {[%clk 00:00:19]} 47. Kf1 {[%clk
00:00:15]} Nxf4 {[%clk 00:00:22]} {[%emt 00:00:02]} 48. Nb4 {[%clk 00:00:12]}
{[%emt 00:00:08]} Kc7 {[%clk 00:00:20]} {[%emt 00:00:08]} 49. Qa4 {[%clk
00:00:10]} {[%emt 00:00:07]} Nd3 {[%clk 00:00:10]} {[%emt 00:00:14]} 50. Nbxd3
{[%clk 00:00:11]} {[%emt 00:00:04]} cxd3 {[%clk 00:00:11]} {[%emt 00:00:03]} 51.
Rb5 {[%clk 00:00:13]} {[%emt 00:00:04]} Qa6 {[%clk 00:00:15]} 52. Ra5 {[%clk
00:00:12]} {[%emt 00:00:06]} Qb6 {[%clk 00:00:16]} {[%emt 00:00:04]} 53. Rb5
{[%clk 00:00:15]} {[%emt 00:00:02]} Qa6 {[%clk 00:00:14]} {[%emt 00:00:07]} 54.
Ra5 {[%clk 00:00:12]} {[%emt 00:00:09]} Qd6 {[%clk 00:00:17]} {[%emt 00:00:01]}
55. Rc5+ {[%clk 00:00:14]} {[%emt 00:00:04]} Kb8 {[%clk 00:00:21]} {[%emt
00:00:01]} 56. Qb5 {[%clk 00:00:13]} {[%emt 00:00:06]} Rxf3+ {[%clk 00:00:17]}
{[%emt 00:00:09]} 57. gxf3 {[%clk 00:00:17]} {[%emt 00:00:01]} d2 {[%clk
00:00:17]} {[%emt 00:00:06]} 58. Nc6+ {[%clk 00:00:20]} {[%emt 00:00:01]} Qxc6
{[%clk 00:00:21]} 59. Rxc6 {[%clk 00:00:20]} {[%emt 00:00:06]} d1=Q+ {[%clk
00:00:24]} {[%emt 00:00:01]} 60. Kf2 {[%clk 00:00:21]} {[%emt 00:00:03]} Qg1+
{[%clk 00:00:28]} {[%emt 00:00:02]} 0-1